[Event "Olomouc Chess Summer-GM 2022"]
[Site "Olomouc"]
[Date "2022.08.18"]
[Round "7.3"]
[White "Stalmach, Richard"]
[Black "Krejci, Jan"]
[Result "1/2-1/2"]
[ECO "D35"]
[WhiteElo "2363"]
[BlackElo "2511"]
[Annotator "TA"]
[PlyCount "49"]
[EventDate "2022.08.10"]
[EventCountry "CZE"]
[SourceTitle "playchess.com"]
[Source "ChessBase"]
[SourceQuality "1"]
[TimeControl "40/5400+30:1800+30"]

{[%evp 13,49,13,21,18,13,16,16,14,16,20,25,25,29,18,12,8,25,-132,-135,-300,-301,-292,-295,-305,-296,-679,-247,-245,-239,-514,0,-7,0,-461,0,0,0,-141]} 1. d4 {[%emt 0:00:02]} Nf6 {[%emt 0:00:07]} 2. c4 {[%emt 0:00:17]} e6 {[%emt 0:00:05]} 3. Nc3 {[%emt 0:00:26]} d5 {[%emt 0:00:05]} 4. cxd5 {[%emt 0:00:41]} exd5 {[%emt 0:00:05]} 5. Bg5 {[%emt 0:01:52]} c6 {[%emt 0:00:05]} 6. e3 {[%emt 0:00:49]} Bd6 {[%emt 0:00:21]} 7. Bd3 {[%emt 0:03:18]} O-O {[%emt 0:00:18]} 8. Nge2 {[%emt 0:02:50] D35: Queen's Gambit Declined: Exchange Variation.} Re8 {[%emt 0:01:21]} 9. Qc2 {[%emt 0:05:49][%cal Od3h7] Hoping for Bxh7+!} h6 {[%emt 0:00:10]} 10. Bh4 {[%emt 0:00:22]} a5 {[%emt 0:00:55]} 11. h3 {[%emt 0:04:02]} Na6 {[%emt 0:00:09][%cal Bb8a6,Ba6c7,Bc7e6,Be6g5,Bg5h3][%mdl 32]} 12. a3 {[%emt 0:00:30] Against Nb4} Nc7 {[%emt 0:00:26]} 13. O-O {[%emt 0:01:43]} Ne6 {[%emt 0:00:22]} 14. f3 {[%emt 0:04:58] 14.f4 is the fancy move.} Ng5 {[%emt 0:04:55]} 15. e4 $2 {[%emt 0:12:50] [#]} (15. f4 $11 Ne6 16. Ng3) 15... Nfxe4 $1 $17 {[%emt 0:00:24][%mdl 512]} 16. fxe4 {[%emt 0:03:56] [#]} (16. Bxe4 $17 {was called for.} dxe4 17. Bxg5 (17. Nxe4 $2 Nxh3+ 18. gxh3 Qxh4 $19) 17... Qxg5 18. Nxe4) (16. Kh1 Nxc3) 16... Nxh3+ $1 $19 {[%emt 0:01:07][%mdl 512]} 17. gxh3 {[%emt 0:00:05]} Qxh4 {[%emt 0:00:05]} 18. Rf2 {[%emt 0:23:20]} Bxh3 {[%emt 0:02:19] [#]} 19. exd5 $146 {[%emt 0:08:42]} (19. Nxd5 cxd5 20. e5) ({Predecessor:} 19. Rd1 Re5 20. dxe5 Bc5 21. Nd4 Bxd4 22. Rdd2 Qg3+ 23. Kh1 Bg4 24. Bf1 Bf3+ 25. Bg2 Qh3+ {0-1 (25) Moiseenko,A (2628)-Korley,K (2437) Helsingor 2019}) 19... cxd5 $2 {[%emt 0:18:31]} (19... Re3 20. Bh7+ (20. Ne4 $2 Qg4+ 21. Kh1 Bf1 $19) 20... Kh8) 20. Qd2 {[%emt 0:06:13] [#]} Rad8 $1 {[%emt 0:17:09][%mdl 1024] Black has strong compensation.} 21. Bc2 $2 {[%emt 0:02:05]} (21. Nf4 {is a better defense.} Qg3+ 22. Kh1) 21... Qg4+ $2 {[%emt 0:21:28]} ({Better is} 21... Re6 $19 {[%cal Of7f5] Threatens to win with ...f5!} 22. Nf4 Qg5+ 23. Kh1 Bg4) 22. Kh1 $11 {[%emt 0:00:03]} Qh4 $2 {[%emt 0:00:05][%mdl 8192]} (22... Bb8 $11) 23. Kg1 $19 {[%emt 0:00:03]} Qg4+ $2 {[%emt 0:05:46]} (23... Re6 $19 24. Nf4 Qg5+ 25. Kh1 Bg4) 24. Kh1 $11 {[%emt 0:00:15]} Qh4 {[%emt 0:00:05]} ({Black should play} 24... Bb8 $11) 25. Kg1 {[%emt 0:00:05] Weighted Error Value: White=0.51/Black=0.80} 1/2-1/2

[Event "Olomouc Chess Summer-GM 2022"]
[Site "Olomouc"]
[Date "2022.08.18"]
[Round "7.4"]
[White "Lutsko, Artem"]
[Black "Sorm, Daniel"]
[Result "1-0"]
[ECO "D35"]
[WhiteElo "2392"]
[BlackElo "2308"]
[Annotator "TA"]
[PlyCount "59"]
[EventDate "2022.08.10"]
[EventCountry "CZE"]
[SourceTitle "playchess.com"]
[Source "ChessBase"]
[SourceQuality "1"]
[TimeControl "40/5400+30:1800+30"]

{[%evp 12,59,23,20,24,17,23,24,31,22,94,81,118,73,80,77,83,81,110,87,185,176,183,186,202,189,193,154,228,234,230,222,274,280,325,328,309,314,368,376,536,540,1398,1396,1358,1314,29991,29992,29996,29997]} 1. c4 {[%emt 0:00:02]} e6 {[%emt 0:00:23]} 2. Nc3 {[%emt 0:00:04]} d5 {[%emt 0:00:14]} 3. d4 {[%emt 0:00:06]} Nf6 {[%emt 0:00:06]} 4. cxd5 {[%emt 0:02:04]} exd5 {[%emt 0:00:26]} 5. Bg5 {[%emt 0:00:04]} c6 {[%emt 0:00:16]} 6. e3 {[%emt 0:01:29]} Bd6 {[%emt 0:00:18] 6...h6 is the modern continuation.} 7. Bd3 {[%emt 0:00:39]} h6 {[%emt 0:00:59] D35: Queen's Gambit Declined: Exchange Variation.} 8. Bh4 {[%emt 0:00:03]} O-O {[%emt 0:00:17]} 9. Nf3 {[%emt 0:01:47]} Re8 {[%emt 0:00:39] White has an edge.} 10. O-O {[%emt 0:06:26]} Be6 {[%emt 0:00:22] [#]} (10... Nbd7 $11) 11. Ne5 $1 $16 {[%emt 0:04:17]} c5 {[%emt 0:00:37] [#]} 12. Nb5 $146 {[%emt 0:01:54]} ({Predecessor:} 12. f4 cxd4 13. exd4 Nc6 14. f5 Nxd4 15. Bxf6 Qxf6 16. fxe6 Qxe6 17. Nf3 Nc6 18. Kh1 {1-0 (30) Balaji,A (2206)-Rosen,E (2353) Chess.com INT 2021}) 12... Be7 {[%emt 0:04:20]} 13. dxc5 {[%emt 0:00:09] 0x0.0019ee847d00dp-1022s more active pieces. The black rooks are badly placed.} Bxc5 {[%emt 0:02:43]} 14. Rc1 {[%emt 0:01:52]} Na6 {[%emt 0:01:45]} 15. Nd4 {[%emt 0:02:47]} Bd6 {[%emt 0:05:16]} (15... Bxd4 $16 {keeps fighting.} 16. exd4 Rc8) 16. Bxa6 $18 {[%emt 0:08:06]} bxa6 {[%emt 0:10:10]} 17. Nec6 {[%emt 0:02:25][%cal Be5c6,Bc6d4,Bd4f5,Bf5h6][%mdl 32] Pair of Knights!} Qd7 {[%emt 0:03:10]} 18. Bxf6 {[%emt 0:00:13]} gxf6 {[%emt 0:00:50]} 19. f4 {[%emt 0:16:40] Threatens to win with f5.} Bf5 {[%emt 0:01:10]} (19... Bg4 $16 20. Qb3 Rac8) 20. Nxf5 {[%emt 0:10:52]} Qxf5 {[%emt 0:00:11]} 21. Nd4 $40 {[%emt 0:00:12][%mdl 128] White has strong attack.} Qe4 {[%emt 0:00:44]} 22. Qg4+ {[%emt 0:05:50]} Kh7 {[%emt 0:07:48]} 23. Nf5 {[%emt 0:00:27][%csl Gf5][%cal Rg4g7]} Rg8 {[%emt 0:00:11] Against Qg7+} 24. Qh3 {[%emt 0:00:05][%csl Gf5][%cal Rh3h6] Really sharp!} Bf8 {[%emt 0:00:07]} 25. Rc7 {[%emt 0:00:41]} Qe6 {[%emt 0:00:07] [#]} (25... Rg6 {was called for.} 26. Rxf7+ Kh8) 26. Re7 $3 {[%emt 0:00:14][%mdl 512]} Qc8 {[%emt 0:04:06]} (26... Qxe7 27. Nxe7) 27. Qh5 {[%emt 0:05:10]} Rg7 {[%emt 0:06:53] [#]} 28. Nxh6 $1 {[%emt 0:01:41]} Rxg2+ {[%emt 0:04:35]} (28... Bxe7 29. Nf5+) 29. Kxg2 {[%emt 0:00:01]} Qh3+ {[%emt 0:00:08]} 30. Kxh3 {[%emt 0:00:08] Weighted Error Value: White=0.04 (flawless) /Black=0.60} 1-0

[Event "Olomouc Chess Summer-GM 2022"]
[Site "Olomouc"]
[Date "2022.08.18"]
[Round "7.5"]
[White "Baum, Jonasz"]
[Black "Svanda, Ondrej"]
[Result "1-0"]
[ECO "E10"]
[WhiteElo "2410"]
[BlackElo "2363"]
[Annotator "TA"]
[PlyCount "117"]
[EventDate "2022.08.10"]
[EventCountry "CZE"]
[SourceTitle "playchess.com"]
[Source "ChessBase"]
[SourceQuality "1"]
[TimeControl "40/5400+30:1800+30"]

{[%evp 16,117,17,14,8,-26,16,11,0,0,0,0,20,10,4,0,20,14,15,0,0,0,0,0,0,0,10,0,0,0,16,13,13,12,23,20,41,38,41,6,41,20,22,25,24,20,22,19,24,30,30,30,38,38,49,49,64,70,64,89,118,110,110,110,150,133,160,161,306,231,311,307,584,584,576,561,513,508,631,511,724,733,683,601,5243,1760,29978,29979,29979,29980,29982,29983,29983,29984,29984,29985,29988,29989,29989,29990,29990,29991,29991,29991]} 1. d4 Nf6 2. c4 e6 3. Nf3 d5 4. g3 Bb4+ 5. Bd2 Be7 6. Bg2 O-O 7. O-O c6 8. Qc2 Nbd7 9. Rd1 b6 {E11: Bogo-Indian.} 10. Ne5 Bb7 11. cxd5 cxd5 {The position is equal.} 12. Nc6 Bxc6 13. Qxc6 Qc8 14. Qa4 Qb7 15. Nc3 {[#]} Rfc8 $146 ({Predecessor:} 15... Rac8 16. e3 a6 17. Rdc1 Rc7 {½-½ (60) Donchenko,A (2563)-Neiksans,A (2599) Chartres 2017}) 16. Rdc1 a6 17. Qb3 b5 18. Nd1 Nb6 19. Qd3 Rxc1 20. Rxc1 Rc8 21. Rc2 Rc6 22. b3 Qc8 23. Rxc6 Qxc6 24. Qc3 Qxc3 25. Bxc3 Ba3 26. f3 Nfd7 27. Bb2 Bb4 28. Kf2 f5 29. e3 Kf7 30. Ke2 Nb8 31. Nf2 Nc6 32. Nd3 Bd6 33. e4 g6 34. exf5 exf5 35. Ne5+ Bxe5 36. dxe5 $14 {[%mdl 4096] Endgame KBB-KNN} Ke6 37. f4 {Black is on the road to losing.} Nb4 38. a3 Nc6 39. Kd3 Nd7 40. Bd4 {Inhibits Nc5+.} g5 41. h4 ({Weaker is} 41. fxg5 Ndxe5+ 42. Bxe5 Kxe5 $11) 41... g4 (41... gxf4 {was called for.} 42. gxf4 Ne7) 42. Kc3 $18 Na5 43. Bf2 Nb7 $2 {[#]} (43... Nc6 44. Bf1 Kf7) 44. Kd4 Nb6 45. Be1 {Prevents Na5.} Nd8 46. Bd2 h5 47. Be1 Nb7 48. a4 bxa4 49. bxa4 {[#] Black must now prevent a5.} a5 50. Bd2 (50. Bc3 $142 Kd7 51. Bxd5 Nxd5 52. Kxd5) 50... Nd8 51. Bxa5 {White mates.} Nc6+ 52. Kc5 Nxa5 53. Kxb6 {KB-KN} Nc4+ 54. Kc5 Ne3 55. Bh1 Nf1 56. a5 {[%cal Ba4a5,Ba5a6][%mdl 32]} Nxg3 57. Bxd5+ Ke7 58. a6 Ne4+ 59. Bxe4 {Weighted Error Value: White=0.04 (flawless) /Black=0.39} 1-0

[Event "Olomouc Chess Summer-GM 2022"]
[Site "Olomouc"]
[Date "2022.08.19"]
[Round "8.1"]
[White "Mirzoev, Azer"]
[Black "Svanda, Ondrej"]
[Result "1/2-1/2"]
[ECO "D38"]
[WhiteElo "2424"]
[BlackElo "2363"]
[Annotator "TA"]
[PlyCount "39"]
[EventDate "2022.08.10"]
[EventCountry "CZE"]
[SourceTitle "playchess.com"]
[Source "ChessBase"]
[SourceQuality "1"]
[TimeControl "40/5400+30:1800+30"]

{[%evp 19,39,2,5,6,9,0,0,0,0,0,6,0,0,-18,-8,-17,-18,-24,0,-8,0,-14]} 1. d4 {[%emt 0:03:01]} Nf6 {[%emt 0:00:06]} 2. Nf3 {[%emt 0:00:05]} e6 {[%emt 0:00:04]} 3. c4 {[%emt 0:00:05]} d5 {[%emt 0:00:04]} 4. Nc3 {[%emt 0:00:47]} Bb4 {[%emt 0:00:03]} 5. Qa4+ {[%emt 0:00:09]} Nc6 {[%emt 0:00:05]} 6. cxd5 {[%emt 0:00:04]} exd5 {[%emt 0:00:08]} 7. Bg5 {[%emt 0:00:05]} h6 {[%emt 0:01:26]} 8. Bxf6 {[%emt 0:00:04]} Qxf6 {[%emt 0:00:10]} 9. e3 {[%emt 0:00:05]} O-O {[%emt 0:01:55]} 10. Be2 {[%emt 0:01:25]} Rd8 {[%emt 0:04:09]} 11. O-O {[%emt 0:00:36] D38: Queen's Gambit Declined: Ragozin Defence (4 Nf3 Bb4).} Be6 {[%emt 0:01:37]} 12. Rfc1 {[%emt 0:00:19]} a6 {[%emt 0:04:35]} 13. a3 {[%emt 0:01:04]} Bd6 {[%emt 0:00:38]} 14. Qd1 {[%emt 0:00:11]} Ne7 {[%emt 0:01:45]} 15. Na4 {[%emt 0:01:22]} b6 {[%emt 0:01:46] [#]} 16. Qf1 $146 {[%emt 0:06:43]} ({Predecessor:} 16. b4 Ng6 17. Nb2 Nh4 18. Nd3 Bf5 19. Nfe5 Bxd3 20. Nxd3 Nf5 21. a4 Ne7 22. b5 {1-0 (73) Iturrizaga Bonelli,E (2649)-Guo,Q (2439) Caleta 2015}) 16... Bc8 {[%emt 0:00:24]} 17. Rab1 {[%emt 0:00:20]} Bf5 {[%emt 0:00:10]} 18. Ra1 {[%emt 0:04:51]} Bc8 {[%emt 0:00:03]} 19. Rab1 {[%emt 0:01:42]} Bf5 {[%emt 0:00:04]} 20. Ra1 {[%emt 0:00:04] A rather calm draw.  Weighted Error Value: White=0.05 (flawless) /Black=0.04 (flawless)} 1/2-1/2

[Event "Olomouc Chess Summer-GM 2022"]
[Site "Olomouc"]
[Date "2022.08.19"]
[Round "8.2"]
[White "Sorm, Daniel"]
[Black "Baum, Jonasz"]
[Result "1-0"]
[ECO "E29"]
[WhiteElo "2308"]
[BlackElo "2410"]
[Annotator "TA"]
[PlyCount "143"]
[EventDate "2022.08.10"]
[EventCountry "CZE"]
[SourceTitle "playchess.com"]
[Source "ChessBase"]
[SourceQuality "1"]
[TimeControl "40/5400+30:1800+30"]

{[%evp 23,143,0,0,0,0,0,0,-1,-14,-20,-12,-22,0,-6,-7,-52,0,0,0,0,0,0,0,0,0,0,0,-23,-27,-18,-26,-25,-16,-18,-25,-16,-14,-15,-20,-30,-12,-30,0,-25,0,-23,-8,-11,-20,-6,-13,-14,-2,-17,0,0,0,-100,0,-77,0,0,0,-22,0,0,0,0,0,0,0,0,0,0,0,0,0,0,0,0,0,0,56,0,61,60,47,-272,-255,-259,-263,-243,-189,-195,0,-247,-246,-703,-637,-1244,0,0,0,0,0,0,0,0,0,0,0,0,29966,29967,29966,29967,29964,6087,5269,818,690,583]} 1. d4 {[%emt 0:00:09]} Nf6 {[%emt 0:00:07]} 2. c4 {[%emt 0:00:12]} e6 {[%emt 0:00:06]} 3. Nc3 {[%emt 0:00:11]} Bb4 {[%emt 0:00:03]} 4. e3 {[%emt 0:00:23]} O-O {[%emt 0:00:06]} 5. a3 {[%emt 0:00:29]} Bxc3+ {[%emt 0:01:08]} 6. bxc3 {[%emt 0:00:05]} c5 {[%emt 0:02:48]} 7. Bd3 {[%emt 0:01:35]} Nc6 {[%emt 0:00:35]} 8. Ne2 {[%emt 0:00:49]} b6 {[%emt 0:01:06]} 9. O-O {[%emt 0:00:18]} Ba6 {[%emt 0:01:40]} 10. e4 {[%emt 0:00:15]} Ne8 {[%emt 0:00:07]} 11. Be3 {[%emt 0:01:24]} d6 {[%emt 0:11:08]} 12. Ng3 {[%emt 0:02:25]} Na5 {[%emt 0:02:24]} 13. Qe2 {[%emt 0:00:32] E29: Nimzo-Indian: Sämisch: 5...0-0 6 e3 c5 7 Bd3 Nc6.} Rc8 {[%emt 0:02:52]} 14. Rac1 {[%emt 0:00:07]} Qd7 {[%emt 0:07:56]} 15. e5 {[%emt 0:06:12] The position is equal.} f5 {[%emt 0:05:48] And now ...f4 would win.} 16. exf6 $1 {[%emt 0:00:54]} Nxf6 {[%emt 0:00:05] [#]} 17. Nh5 $146 {[%emt 0:01:20]} ({Predecessor:} 17. dxc5 bxc5 18. Nh5 Qf7 19. Nxf6+ Qxf6 20. Rfd1 Rb8 21. Qc2 Nxc4 22. Bxc4 Bxc4 23. Rxd6 {0-1 (44) Wang,D (2130)-Kojima,S (2264) Kecskemet 2012}) 17... Qf7 {[%emt 0:10:58]} 18. Nxf6+ {[%emt 0:09:01]} Qxf6 {[%emt 0:00:11]} 19. Qh5 {[%emt 0:00:11]} g6 {[%emt 0:02:38]} (19... h6 $1 $15) 20. Qe2 $11 {[%emt 0:00:06]} e5 {[%emt 0:03:20][%cal Re5d4]} 21. dxe5 {[%emt 0:03:21]} dxe5 {[%emt 0:04:03]} 22. Qg4 {[%emt 0:01:32] Against Qe6} Rfe8 23. Rfd1 {[%emt 0:07:25]} Rc7 {[%emt 0:07:39]} 24. Be4 {[%emt 0:08:18]} Bxc4 {[%emt 0:00:48]} 25. Bd5+ {[%emt 0:00:05]} (25. Rd7 Be6 26. Rd6 Rd7 $1 $17 {[%mdl 512]}) 25... Bxd5 {[%emt 0:00:06]} 26. Rxd5 {[%emt 0:00:03]} Qe6 {[%emt 0:03:38]} 27. Qe4 {[%emt 0:01:39]} Rd7 {[%emt 0:03:31]} 28. Rcd1 {[%emt 0:03:06]} Red8 {[%emt 0:00:52][%cal Rd7d5]} 29. c4 {[%emt 0:09:23]} Rxd5 {[%emt 0:11:05]} 30. cxd5 {[%emt 0:00:28]} Qf5 {[%emt 0:00:22]} 31. Qa4 {[%emt 0:02:31]} Qd7 {[%emt 0:01:06]} 32. Qe4 {[%emt 0:08:47]} Qf5 $40 {[%emt 0:01:06][%mdl 128] Black is up to no good.} 33. Qa4 {[%emt 0:00:12]} Qd7 {[%emt 0:00:44]} 34. Qe4 {[%emt 0:00:31]} Nc6 {[%emt 0:05:09][%cal Ba5c6,Bc6b8,Bb8d7][%mdl 32]} 35. Bg5 {[%emt 0:00:12]} Re8 {[%emt 0:02:07]} 36. Qa4 {[%emt 0:13:07][%mdl 64] Pin} Nb8 {[%emt 0:00:10]} 37. Qc4 {[%emt 0:00:09]} Kg7 {[%emt 0:06:41]} 38. Qh4 {[%emt 0:02:33]} Qf7 {[%emt 0:01:36]} 39. d6 {[%emt 0:05:52]} Nd7 {[%emt 0:01:43]} 40. Be7 {[%emt 0:12:18]} (40. Bh6+ $11 Kh8 41. Qa4) 40... Qe6 {[%emt 0:02:23]} (40... b5 $1 $17) 41. Qe4 {[%emt 0:08:21]} (41. Bg5 h5 $15) (41. Qa4 $11 {keeps the balance.}) 41... Qf5 {[%emt 0:04:57]} (41... Rb8 $1 $17) 42. Qc6 {[%emt 0:01:53]} Rb8 {[%emt 0:00:47]} 43. Qb5 {[%emt 0:04:38]} a5 {[%emt 0:01:40]} (43... a6 $5 44. Qxa6 b5 $15) 44. h3 {[%emt 0:01:25]} Qe6 {[%emt 0:00:53]} 45. Rc1 {[%emt 0:03:28]} Kg8 {[%emt 0:05:09]} 46. a4 {[%emt 0:00:46]} Rc8 {[%emt 0:00:59]} 47. Qa6 {[%emt 0:01:41]} Re8 {[%emt 0:00:53]} 48. Qb5 {[%emt 0:01:06]} Kg7 {[%emt 0:00:54]} 49. Rc3 {[%emt 0:02:10]} Rc8 {[%emt 0:00:22]} 50. Qa6 {[%emt 0:00:41]} Rb8 {[%emt 0:01:00]} 51. Qb5 {[%emt 0:00:45]} Rg8 {[%emt 0:01:56]} 52. Qc6 {[%emt 0:00:22]} Rb8 {[%emt 0:01:12]} ({Black should try} 52... h6 $11) 53. Qc7 {[%emt 0:01:19]} (53. Re3 $1 $14) 53... b5 {[%emt 0:11:00]} (53... h6 $11) 54. Rxc5 $14 {[%emt 0:00:06][%cal Oa4b5] White is much more active.} b4 {[%emt 0:00:03]} (54... bxa4 $2 55. Rxa5 Qf5 56. Bg5 $1 $18 {[%mdl 512]}) 55. Rb5 $2 {[%emt 0:01:22][%mdl 8192]} (55. Rxa5 $2 b3 56. Kh2 b2 57. Qxb8 Nxb8 $19) (55. Rc2 $1 $14 {keeps the upper hand.}) 55... Rxb5 $19 {[%emt 0:00:26]} 56. axb5 {[%emt 0:00:04][%mdl 4096] Endgame KQB-KQN} b3 $1 {[%emt 0:01:09] Strongly threatening ...b2.} 57. Qc3 {[%emt 0:02:15]} Qd5 {[%emt 0:01:01]} 58. Qc6 {[%emt 0:00:22] [#]} Qe6 {[%emt 0:00:46]} (58... Qd1+ 59. Kh2 Qd2 60. Bg5 (60. Qxd7 Qf4+ 61. Kh1 Qc1+ 62. Kh2 Qf4+ 63. Kh1 Qc1+ 64. Kh2 Qf4+ $11) 60... Qxg5 61. Qxd7+ Kg8 62. Qc8+ Kg7 63. Qc7+ Kh6 64. Qf7 $18) (58... Qf7 $142 $1 {Hoping for ...b2.} 59. Qc1 (59. Qxd7 $2 b2 $19) (59. Qc3 Qd5) 59... Qd5) 59. Qc3 {[%emt 0:00:11]} a4 {[%emt 0:00:17] Threatens to win with ...a3.} 60. Qb4 {[%emt 0:00:33]} (60. Bg5 a3 61. Bc1) 60... Qd5 {[%emt 0:01:32] White must now prevent ...Qd4.} 61. b6 {[%emt 0:00:40]} Qd4 $2 {[%emt 0:00:29]} (61... Qc5 $19 62. Qxa4 b2) 62. Qb5 $1 $11 {[%emt 0:00:08]} b2 {[%emt 0:00:47]} (62... Qxb6 63. Qxd7) 63. b7 {[%emt 0:00:40]} Qd1+ {[%emt 0:01:47]} 64. Kh2 {[%emt 0:00:04]} b1=Q {[%emt 0:00:09] ( -> ...Qg1+)} 65. Qxd7 {[%emt 0:01:52]} Qg1+ {[%emt 0:01:36]} 66. Kg3 {[%emt 0:00:02] Intending Bg5+ and mate.} Qb3+ {[%emt 0:00:57]} 67. f3 {[%emt 0:00:17] Dancing on a razor blade.} Qf7 $2 {[%emt 0:00:51][%mdl 8192] [#]} (67... Qxf3+ $11 68. Kxf3 Qf1+ 69. Ke3 (69. Ke4 Qc4+ 70. Kxe5 Qc5+ 71. Kf4 Qd4+ 72. Kf3 Qd3+ 73. Kf2 Qd4+ 74. Kg3 Qe5+ 75. Kf3 Qd5+ 76. Kg4 Qd4+ 77. Kg3 Qe5+ 78. Kg4 Qd4+ 79. Kg3 $11) 69... Qf4+ 70. Kd3 (70. Ke2 Qc4+ 71. Kf2 Qf4+ 72. Kg1 Qc1+ 73. Kf2 Qd2+ 74. Kf3 Qd3+ 75. Kf2 Qd2+ 76. Kf1 Qd1+ 77. Kf2 Qd2+ $11) 70... Qd4+ 71. Kc2 Qc4+ 72. Kb2 Qb3+ 73. Kc1 Qc3+ 74. Kd1 Qd4+ 75. Ke2 Qb2+ 76. Kf1 Qc1+ 77. Kf2 Qd2+ 78. Kf3 (78. Kg1 Qc1+ 79. Kh2 Qf4+ 80. g3 Qd2+ 81. Kg1 Qe1+ 82. Kh2 Qf2+ 83. Kh1 Qe1+ 84. Kh2 Qf2+ 85. Kh1 Qe1+ 86. Kh2 $11) 78... Qd3+ 79. Kf2 Qd2+ 80. Kg1 Qc1+ 81. Kh2 Qf4+ 82. g3 Qf2+ 83. Kh1 Qe1+ 84. Kh2 Qf2+ 85. Kh1 Qe1+ 86. Kh2 Qf2+) 68. Bf8+ $1 {[%emt 0:02:16][%mdl 576] Pin} Kg8 {[%emt 0:00:29]} 69. Qxf7+ {[%emt 0:00:33]} Kxf7 {[%emt 0:00:01]} 70. b8=Q {[%emt 0:00:10] Threatening mate with d7.} Qd4 {[%emt 0:00:35]} 71. Bh6 {[%emt 0:00:59] Qc7+ would kill now.} Ke6 {[%emt 0:00:17]} 72. Qc7 {[%emt 0:02:49] Never resign too early!  Weighted Error Value: White=0.26 (precise) /Black=0.18 (very precise)} 1-0

[Event "Olomouc Chess Summer-GM 2022"]
[Site "Olomouc"]
[Date "2022.08.19"]
[Round "8.3"]
[White "Krejci, Jan"]
[Black "Lutsko, Artem"]
[Result "1/2-1/2"]
[ECO "E46"]
[WhiteElo "2511"]
[BlackElo "2392"]
[Annotator "TA"]
[PlyCount "37"]
[EventDate "2022.08.10"]
[EventCountry "CZE"]
[SourceTitle "playchess.com"]
[Source "ChessBase"]
[SourceQuality "1"]
[TimeControl "40/5400+30:1800+30"]

{[%evp 13,37,-7,0,0,0,7,0,-20,8,-16,-12,-7,16,4,7,10,15,-33,-34,-31,-35,-113,-123,-106,-100,-116]} 1. d4 {[%emt 0:00:03]} Nf6 {[%emt 0:00:04]} 2. c4 {[%emt 0:00:05]} e6 {[%emt 0:00:03]} 3. Nc3 {[%emt 0:00:06]} Bb4 {[%emt 0:00:04]} 4. e3 {[%emt 0:00:06]} O-O {[%emt 0:00:19]} 5. Nge2 {[%emt 0:00:08]} Re8 {[%emt 0:01:00]} 6. a3 {[%emt 0:00:23]} Bf8 {[%emt 0:00:06]} 7. Ng3 {[%emt 0:01:26]} d5 {[%emt 0:00:24]} 8. Be2 {[%emt 0:04:03] E46: Nimzo-Indian: Rubinstein: 4 e3 0-0 5 Ne2 without early Bd3.} b6 {[%emt 0:01:25]} 9. O-O {[%emt 0:01:15] 9.0-0 scores better than 9.cxd5.} Bb7 {[%emt 0:00:05]} 10. Bf3 {[%emt 0:02:19] The position is equal.} Nbd7 {[%emt 0:11:23][%cal Bb8d7,Bd7c5,Bc5b3][%mdl 32] [#]} 11. b3 $146 {[%emt 0:02:56]} ({Predecessor:} 11. Re1 c5 12. dxc5 Ne5 13. cxd5 Bxc5 14. b4 Nxf3+ 15. Qxf3 Bf8 16. Bb2 Nxd5 17. Nxd5 Qxd5 {½-½ (55) Bajarani,U (2458)-Chasin,N (2276) Dulles 2021}) 11... Rc8 {[%emt 0:05:21]} 12. Bb2 {[%emt 0:01:34]} c5 {[%emt 0:22:15]} 13. cxd5 {[%emt 0:07:48]} cxd4 {[%emt 0:11:53]} 14. Qxd4 {[%emt 0:03:56] Strongly threatening dxe6.} Nc5 15. Qd1 {[%emt 0:30:08]} ({But not} 15. b4 Nb3 16. Qd1 Nxa1 17. dxe6 Bxf3 18. Qxf3 {[#]} Rxe6 $1 19. Bxa1 a5 $17) (15. Rab1 $11) 15... Nxd5 $15 {[%emt 0:03:41]} 16. Nce4 {[%emt 0:00:37]} Ba6 {[%emt 0:03:06]} 17. Be2 {[%emt 0:06:21]} (17. Nxc5 $1 $15 Bxf1 18. Nxe6 fxe6 19. Qxf1) 17... Bxe2 $17 {[%emt 0:01:28]} 18. Qxe2 {[%emt 0:00:01]} Nxb3 {[%emt 0:04:00]} 19. Rad1 {[%emt 0:00:10] Weighted Error Value: White=0.18 (very precise) /Black=0.05 (flawless)} 1/2-1/2

[Event "Olomouc Chess Summer-GM 2022"]
[Site "Olomouc"]
[Date "2022.08.19"]
[Round "8.4"]
[White "Frank, Adam"]
[Black "Stalmach, Richard"]
[Result "1/2-1/2"]
[ECO "B85"]
[WhiteElo "2313"]
[BlackElo "2363"]
[Annotator "TA"]
[PlyCount "54"]
[EventDate "2022.08.10"]
[EventCountry "CZE"]
[SourceTitle "playchess.com"]
[Source "ChessBase"]
[SourceQuality "1"]
[TimeControl "40/5400+30:1800+30"]

{[%evp 22,54,25,0,0,0,0,-14,-14,-22,-13,-10,18,18,15,12,16,7,10,17,14,0,0,0,0,0,0,0,0,0,0,0,0,0,0]} 1. e4 {[%emt 0:00:04]} c5 {[%emt 0:00:36]} 2. Nf3 {[%emt 0:00:16]} Nc6 {[%emt 0:00:53]} 3. d4 {[%emt 0:00:15]} cxd4 {[%emt 0:00:14]} 4. Nxd4 {[%emt 0:00:08]} e6 {[%emt 0:00:35]} 5. Nc3 {[%emt 0:00:10]} Qc7 {[%emt 0:01:28]} 6. Be3 {[%emt 0:00:56]} a6 {[%emt 0:00:25]} 7. Be2 {[%emt 0:00:16]} Nf6 {[%emt 0:00:36]} 8. O-O {[%emt 0:00:11]} Be7 {[%emt 0:00:35]} 9. f4 {[%emt 0:00:07]} d6 {[%emt 0:00:31]} 10. Qe1 {[%emt 0:00:34]} O-O {[%emt 0:00:32]} 11. Qg3 {[%emt 0:00:27]} Bd7 {[%emt 0:01:18]} 12. e5 {[%emt 0:01:15]} dxe5 {[%emt 0:00:58] The position is equal. B85: Sicilian Scheveningen: 6 Be2 a6, lines with early Be3.} 13. fxe5 {[%emt 0:00:05]} Nxe5 {[%emt 0:00:38]} 14. Bf4 {[%emt 0:00:08]} Bd6 {[%emt 0:00:39]} 15. Rad1 {[%emt 0:00:29][%cal Ba1d1,Bd1d3,Bd3c3][%mdl 32]} Qb8 {[%emt 0:00:35]} 16. Rd3 {[%emt 0:00:50]} Ne8 {[%emt 0:00:48]} (16... Nxd3 $2 17. Bxd6 Qa7 18. Qxd3 $18) 17. Ne4 $1 {[%emt 0:00:35]} Bc7 {[%emt 0:00:22]} 18. Rc3 {[%emt 0:00:28][%cal Oc3c7] [#] Hoping for Rxc7!} Nc6 {[%emt 0:01:38]} 19. Bxc7 {[%emt 0:01:34]} Nxd4 {[%emt 0:01:07]} 20. Bd3 {[%emt 0:05:17] This bishop pair is nice.} ({But not} 20. Bxb8 Nxe2+ 21. Kh1 Nxg3+ 22. Bxg3 Bc6 $17) 20... Qa7 {[%emt 0:01:27] Threatens to win with ...Ne2+.} 21. Nc5 {[%emt 0:01:14]} Nxc7 {[%emt 0:05:34]} 22. Bxh7+ {[%emt 0:03:26]} Kxh7 {[%emt 0:00:59]} 23. Qxg7+ $1 {[%emt 0:00:05][%mdl 64] [#] Decoy} Kxg7 {[%emt 0:00:05]} 24. Rg3+ {[%emt 0:00:02] [#]} Kh7 $146 {[%emt 0:00:08][%cal Bg7h7,Bh7g6,Bg6h5,Bh5g4][%mdl 32]} ({Predecessor:} 24... Kh6 25. Rh3+ {½-½ (25) Otte,L (2240)-Sandor,C (2240) Munich 1993}) 25. Rh3+ {[%emt 0:00:05]} Kg6 {[%emt 0:00:03]} 26. Rg3+ {[%emt 0:00:02]} Kh5 {[%emt 0:00:03]} 27. Rh3+ {[%emt 0:00:05]} Kg4 {[%emt 0:00:03] A balanced but interesting game.  Weighted Error Value: White=0.04 (flawless) /Black=0.03 (flawless)} 1/2-1/2